{"text_format":"1","workbook":"xlsx","n_sheets":4,"sheets":["_data12345","Group Entry Form","Validation Codes","Sheet1"],"not_rendered":{"charts":0,"images":1,"macros":1,"external_links":0,"defined_names":10,"comments":0,"pivot_tables":0},"unopened":[],"bounds":{"document_bytes":16777216,"sheet_cells":100000,"rows_first":2000,"rows_last":500,"rows_between":2000,"halvings":0,"cell_chars":16384,"cell_head_chars":4096},"cells_cut":0,"cells_raw":0,"read":"whole","date_system":"1900"}

{"sheet":"_data12345","index":0,"n_rows":2,"n_cols":1,"rows_kept":2,"cut":false,"hidden":true,"merged":[]}
["Icon"]
["42|4D|38|3|0|0|0|0|0|0|36|0|0|0|28|0|0|0|10|0|0|0|10|0|0|0|1|0|18|0|0|0|0|0|2|3|0|0|12|B|0|0|12|B|0|0|0|0|0|0|0|0|0|0|59|59|59|59|59|59|59|59|59|59|59|59|59|59|59|59|59|59|59|59|59|59|59|59|59|59|59|59|59|59|59|59|59|59|59|59|59|59|59|59|59|59|59|59|59|59|59|59|59|59|59|FF|FF|FF|FF|FF|FF|FF|FF|FF|FF|FF|FF|FF|FF|FF|FF|FF|FF|FF|FF|FF|FF|FF|FF|FF|FF|FF|FF|FF|FF|FF|FF|FF|FF|FF|FF|FF|FF|FF|FF|FF|FF|59|59|59|59|59|59|FF|FF|FF|FF|FF|FF|FF|FF|FF|59|59|59|59|59|59|59|59|59|FF|FF|FF|FF|FF|FF|FF|FF|FF|FF|FF|FF|59|59|59|FF|FF|FF|FF|FF|FF|FF|FF|FF|59|59|59|59|59|59|FF|FF|FF|FF|FF|FF|FF|FF|FF|FF|FF|FF|59|59|59|FF|FF|FF|FF|FF|FF|FF|FF|FF|FF|FF|FF|FF|FF|FF|59|59|59|FF|FF|FF|FF|FF|FF|FF|FF|FF|59|59|59|59|59|59|FF|FF|FF|FF|FF|FF|FF|FF|FF|FF|FF|FF|59|59|59|FF|FF|FF|FF|FF|FF|FF|FF|FF|FF|FF|FF|FF|FF|FF|59|59|59|FF|FF|FF|FF|FF|FF|FF|FF|FF|59|59|59|59|59|59|FF|FF|FF|FF|FF|FF|FF|FF|FF|FF|FF|FF|59|59|59|FF|FF|FF|FF|FF|FF|59|59|59|59|59|59|59|59|59|59|59|59|FF|FF|FF|FF|FF|FF|FF|FF|FF|59|59|59|59|59|59|FF|FF|FF|FF|FF|FF|FF|FF|FF|FF|FF|FF|59|59|59|FF|FF|FF|FF|FF|FF|59|59|59|FF|FF|FF|FF|FF|FF|59|59|59|FF|FF|FF|FF|FF|FF|FF|FF|FF|59|59|59|59|59|59|FF|FF|FF|FF|FF|FF|FF|FF|FF|59|59|59|59|59|59|FF|FF|FF|FF|FF|FF|59|59|59|FF|FF|FF|FF|FF|FF|59|59|59|FF|FF|FF|FF|FF|FF|FF|FF|FF|59|59|59|59|59|59|FF|FF|FF|FF|FF|FF|FF|FF|FF|FF|FF|FF|59|59|59|FF|FF|FF|FF|FF|FF|59|59|59|FF|FF|FF|FF|FF|FF|59|59|59|FF|FF|FF|FF|FF|FF|FF|FF|FF|59|59|59|59|59|59|FF|FF|FF|FF|FF|FF|FF|FF|FF|FF|FF|FF|FF|FF|FF|FF|FF|FF|FF|FF|FF|FF|FF|FF|FF|FF|FF|FF|FF|FF|FF|FF|FF|FF|FF|FF|FF|FF|FF|FF|FF|FF|59|59|59|D|8|89|D|8|89|D|8|89|D|8|89|D|8|89|D|8|89|D|8|89|D|8|89|D|8|89|D|8|89|D|8|89|D|8|89|D|8|89|D|8|89|D|8|89|D|8|89|D|8|89|32|55|D6|32|55|D6|32|55|D6|32|55|D6|32|55|D6|32|55|D6|32|55|D6|32|55|D6|32|55|D6|32|55|D6|32|55|D6|32|55|D6|32|55|D6|32|55|D6|D|8|89|D|8|89|32|55|D6|D|8|89|32|55|D6|D|8|89|32|55|D6|D|8|89|32|55|D6|32|55|D6|32|55|D6|32|55|D6|32|55|D6|32|55|D6|32|55|D6|32|55|D6|D|8|89|D|8|89|32|55|D6|FF|FF|FF|32|55|D6|FF|FF|FF|32|55|D6|FF|FF|FF|32|55|D6|32|55|D6|32|55|D6|32|55|D6|32|55|D6|32|55|D6|32|55|D6|32|55|D6|D|8|89|D|8|89|32|55|D6|32|55|D6|32|55|D6|32|55|D6|32|55|D6|32|55|D6|32|55|D6|32|55|D6|32|55|D6|32|55|D6|32|55|D6|32|55|D6|32|55|D6|32|55|D6|D|8|89|D|8|89|D|8|89|D|8|89|D|8|89|D|8|89|D|8|89|D|8|89|D|8|89|D|8|89|D|8|89|D|8|89|D|8|89|D|8|89|D|8|89|D|8|89|D|8|89|0|0"]

{"sheet":"Group Entry Form","index":1,"n_rows":108,"n_cols":34,"rows_kept":108,"cut":false,"hidden":false,"merged":[[6,31,6,32],[7,31,7,32],[3,8,7,8],[3,9,7,9],[3,10,3,29],[4,11,4,15],[4,16,4,20],[4,21,4,24],[4,25,4,29],[0,0,0,12],[1,0,1,29],[3,0,7,0],[3,1,7,1],[3,2,7,2],[3,3,7,3],[3,4,7,4],[3,5,7,5],[3,6,7,6],[3,7,7,7]]}
["IIRC&PIRC Group Entry form Rev",null,null,null,null,null,null,null,null,null,null,null,null,19,null,null,null,null,null,null,null,null,null,null,null,null,null,null,null,{"$f":"TRIM(LEFT(SUBSTITUTE(MID(CELL(\"filename\"), FIND(\"Rev \",CELL(\"filename\"))+4, 99), \".\", REPT(\" \", 99)), 99))","v":"20"}]
["\nFill in the details, SAVE (clubname.xlsx for example) and email the EXCEL FILE to info@rowfit.ie for total fee confirmation. Please do not submit a .pdf\n\nEntry fees for group entries must be paid for before race cards are issued. A group entry race pack and individual race cards within will only be released when total paid. Absences are not negotiable.\n\nLightweight event upper limits are Men 75kg and Women 61.5kg. Lightweight competitors must be officially weighed between 1 and 2 hours before their race by the Officials. \nCompetitors entered in a lightweight race who do not make their weight will NOT be permitted to race. YOU WILL NOT BE ALLOWED CHANGE CATEGORY ON THE DAY if you do not make weight. If you race and have not weighed in you will be disqualified.\n\nEnter Relay Teams on this sheet.  Only one Row required per team. Enter 'TEAM' in Surname Column. \nThe Relay Team-member names are managed by the coach/entrant. Not required by Organiser. \nChamges to the Relay Team members are possible right up to Start-of-Race but Age/Category rules always apply. \nA younger team member may race within an older team. "]
[]
["Surname","First Name","Email address\n\nMin. One Required per entry for correspnodence.","Date of birth\n\n(Mandatory)\n\nDD/MMM/YYYY","Gender\n\n(Mandatory)\n\nMale/Female","Country","Club","Event 1 Title","Event 2 Title","Event 3 Title","FEES\n(input 'x' under fee according to events chosen)",null,null,null,null,null,null,null,null,null,null,null,null,null,null,null,null,null,null,null,null,"Discount",null,"TOTAL FEE"]
[null,null,null,null,null,null,null,null,null,null,"iROW","Junior",null,null,null,null,"College",null,null,null,null,"Para",null,null,null,"Senior",null,null,null,null,{"$f":"1-AF5","v":1},{"$f":"IF(COUNTA(A9:A107)>9,0.05,0)","v":0},null,{"$f":"AF108","v":0}]
[null,null,null,null,null,null,null,null,null,null,"4 min \n'Set Time'","2000m,\n1000m \nor\n'Set Time' "," 500m"," Combo\n2 Races","Deluxe \n3 Races","Relay Team","2000m\nor \n1000m\n","500m"," Combo\n2 Races","Deluxe \n3 Races","Relay Team","2000m","500m"," Combo\n2 Races","Deluxe \n3 Races","2000m \nor \n1000m"," 500m\n\n"," Combo\n2 Races","Deluxe \n3 Races","Relay Team"]
[null,null,null,null,null,null,null,null,null,null,20,20,14,30,48,36,20,14,30,48,36,27,20,42,60,27,20,42,60,48,null,"← Flat Rate"]
[null,null,null,null,null,null,null,null,null,null,{"$f":"K7*(1-$AF$5)","v":20},20,14,30,48,36,20,14,30,48,36,27,20,42,60,27,20,42,60,48,null,"← Discounted"]
[]
[]
[]
[]
[]
[]
[]
[]
[]
[]
[]
[]
[]
[]
[]
[]
[]
[]
[]
[]
[]
[]
[]
[]
[]
[]
[]
[]
[]
[]
[]
[]
[]
[]
[]
[]
[]
[]
[]
[]
[]
[]
[]
[]
[]
[]
[]
[]
[]
[]
[]
[]
[]
[]
[]
[]
[]
[]
[]
[]
[]
[]
[]
[]
[]
[]
[]
[]
[]
[]
[]
[]
[]
[]
[]
[]
[]
[]
[]
[]
[]
[]
[]
[]
[]
[]
[]
[]
[]
[]
[]
[]
[]
[]
[]
[]
[]
[]
[]
[null,null,null,null,null,null,null,null,null,null,{"$f":"K8*COUNTA(K9:K107)","v":0},0,0,0,0,0,0,0,0,0,0,0,0,0,0,0,0,0,0,0,null,{"$f":"SUM(K108:AE108)","v":0},"TOTAL"]

{"sheet":"Validation Codes","index":2,"n_rows":60,"n_cols":22,"rows_kept":60,"cut":false,"hidden":false,"merged":[]}
[null,null,"Male","Female","Mixed",null,"PIRC 2021",null,null,null,null,null,null,null,null,null,null,null,null,null,"PIRC 2023"]
["Male",null,"iROW","iROW","JunMixT",null,"iROW","iROW",null,"WTY1",null,null,null,"Yes",null,"x",null,null,"IPT_MJ13",null,"iROW","iROW"]
["Female",null,"LM30-39_2000","LW30-39_2000","SenMixT",null,"LM30-39_2000","LW30-39_2000",null,"WTY2",null,null,null,"No",null,null,null,null,"IPT_MJ14",null,"LM30-39_2000","LW30-39_2000"]
["Mixed",null,"LM40-49_2000","LW40-49_2000","JunMixT",null,"LM40-49_2000","LW40-49_2000",null,"WTY3",null,null,null,null,null,null,null,null,"IPT_MJ15",null,"LM40-49_2000","LW40-49_2000"]
[null,null,"LM50-59_2000","LW50-59_2000","SenMixT",null,"LM50-59_2000","LW50-59_2000",null,"WTY4",null,null,null,null,null,null,null,null,"IPT_MJ16",null,"LM50-59_2000","LW50-59_2000"]
[null,null,"LM60-69_2000","LW60-69_2000","JunMixT",null,"LM60-69_2000","LW60-69_2000",null,"WTY5",null,"Connaught",null,null,null,null,null,null,"IPT_MJ18",null,"LM60-69_2000","LW60-69_2000"]
[null,null,"LM70+_2000","LW70+_2000","SenMixT",null,"LM70+_2000","LW70+_2000",null,"WTST",null,"Leinster",null,null,null,null,null,null,"IPT_WJ13",null,"LM70+_2000","LW70+_2000"]
[null,null,"LMO_2000","LWO_2000","JunMixT",null,"LMO_2000","LWO_2000",null,"WOT",null,"Munster",null,null,null,null,null,null,"IPT_WJ14",null,"LMO_2000","LWO_2000"]
[null,null,"LMO_500","LWO_500","SenMixT",null,"LMO_500","LWO_500",null,"MTY1",null,"Ulster",null,null,null,null,null,null,"IPT_WJ15",null,"LMO_500","LWO_500"]
[null,null,"LMU23_2000","LWU23_2000","JunMixT",null,"LMU23_2000","LWU23_2000",null,"MTY2",null,null,null,null,null,null,null,null,"IPT_WJ16",null,"LMU23_2000","LWU23_2000"]
[null,null,"M27-33_1000","W27-33_1000","SenMixT",null,"M27-33_1000","W27-33_1000",null,"MTY3",null,null,null,null,null,null,null,null,"IPT_WJ18",null,"M27-33_1000","W27-33_1000"]
[null,null,"M30-39_2000","W30-39_2000","JunMixT",null,"M30-39_2000","W30-39_2000",null,"MTY4",null,null,null,null,null,null,null,null,null,null,"M30-39_2000","W30-39_2000"]
[null,null,"M34-42_1000","W34-42_1000","SenMixT",null,"M34-42_1000","W34-42_1000",null,"MTY5",null,null,null,null,null,null,null,null,null,null,"M34-42_1000","W34-42_1000"]
[null,null,"M40-49_2000","W40-49_2000","JunMixT",null,"M40-49_2000","W40-49_2000",null,"MTST",null,null,null,null,null,null,null,null,null,null,"M40-49_2000","W40-49_2000"]
[null,null,"M40-49_500","W40-49_500","SenMixT",null,"M40-49_500","W40-49_500",null,"MOT",null,"MTY1","WTY1",null,null,null,null,null,null,null,"M40-49_500","W40-49_500"]
[null,null,"M43-49_1000","W43-49_1000","JunMixT",null,"M43-49_1000","W43-49_1000",null,null,null,"MTY2","WTY2",null,null,null,null,null,null,null,"M43-49_1000","W43-49_1000"]
[null,null,"M50-54_1000","W50-54_1000","SenMixT",null,"M50-54_1000","W50-54_1000",null,null,null,"MTY3","WTY3",null,null,null,null,null,null,null,"M50-54_1000","W50-54_1000"]
[null,null,"M50-59_2000","W50-59_2000","JunMixT",null,"M50-59_2000","W50-59_2000",null,null,null,"MTY4","WTY4",null,null,null,null,null,null,null,"M50-59_2000","W50-59_2000"]
[null,null,"M50-59_500","W50-59_500","SenMixT",null,"M50-59_500","W50-59_500",null,null,null,"MTY5","WTY5",null,null,null,null,null,null,null,"M50-59_500","W50-59_500"]
[null,null,"M55-59_1000","W55-59_1000","JunMixT",null,"M55-59_1000","W55-59_1000",null,null,null,"MTST","WTST",null,null,null,null,null,null,null,"M55-59_1000","W55-59_1000"]
[null,null,"M60-64_1000","W60-64_1000","SenMixT",null,"M60-64_1000","W60-64_1000",null,null,null,"MOT","WOT",null,null,null,null,null,null,null,"M60-64_1000","W60-64_1000"]
[null,null,"M60-69_2000","W60-69_2000","JunMixT",null,"M60-69_2000","W60-69_2000",null,null,null,null,null,null,null,null,null,null,null,null,"M60-69_2000","W60-69_2000"]
[null,null,"M60-69_500","W60-69_500","SenMixT",null,"M60-69_500","W60-69_500",null,null,null,null,null,null,null,null,null,null,null,null,"M60-69_500","W60-69_500"]
[null,null,"M65-69_1000","W65-69_1000","JunMixT",null,"M65-69_1000","W65-69_1000",null,null,null,null,null,null,null,null,null,null,null,null,"M65-69_1000","W65-69_1000"]
[null,null,"M70-79_2000","W70-79_2000","SenMixT",null,"M70+_2000","W70+_2000",null,null,null,null,null,null,null,null,null,null,null,null,"M70-79_2000","W70-79_2000"]
[null,null,"M80+_2000","W80+_2000","JunMixT",null,"M70+_500","W70+_500",null,null,null,null,null,null,null,null,null,null,null,null,"M80+_2000","W80+_2000"]
[null,null,"M70-79_500","W70-79_500","SenMixT",null,"M70-74_1000","W70-74_1000",null,null,null,null,null,null,null,null,null,null,null,null,"M70-79_500","W70-79_500"]
[null,null,"M80+_500","W80+_500","JunMixT",null,"M75+_1000","W75+_1000",null,null,null,null,null,null,null,null,null,null,null,null,"M80+_500","W80+_500"]
[null,null,"M70-74_1000","W70-74_1000","SenMixT",null,"MAS","WAS",null,null,null,null,null,null,null,null,null,null,null,null,"M70-74_1000","W70-74_1000"]
[null,null,"M75-79_1000","W75-79_1000","JunMixT",null,"MFR_1000","WFR_1000",null,null,null,null,null,null,null,null,null,null,null,null,"M75-79_1000","W75-79_1000"]
[null,null,"M80+_1000","W80+_1000","SenMixT",null,"MJ13","WJ13",null,null,null,null,null,null,null,null,null,null,null,null,"M80+_1000","W80+_1000"]
[null,null,"MAS","WAS","JunMixT",null,"MJ13_500","WJ13_500",null,null,null,null,null,null,null,null,null,null,null,null,"MAS","WAS"]
[null,null,"MFR_1000","WFR_1000","SenMixT",null,"MJ14","WJ14",null,null,null,null,null,null,null,null,null,null,null,null,"MFR_1000","WFR_1000"]
[null,null,"MJ13","WJ13","JunMixT",null,"MJ14_500","WJ14_500",null,null,null,null,null,null,null,null,null,null,null,null,"MJ13","WJ13"]
[null,null,"MJ13_500","WJ13_500","SenMixT",null,"MJ15","WJ15",null,null,null,null,null,null,null,null,null,null,null,null,"MJ13_500","WJ13_500"]
[null,null,"MJ14","WJ14","JunMixT",null,"MJ15_1000","WJ15_1000",null,null,null,null,null,null,null,null,null,null,null,null,"MJ14","WJ14"]
[null,null,"MJ14_500","WJ14_500","SenMixT",null,"MJ15_500","WJ15_500",null,null,null,null,null,null,null,null,null,null,null,null,"MJ14_500","WJ14_500"]
[null,null,"MJ15","WJ15","JunMixT",null,"MJ16_1000","WJ16_1000",null,null,null,null,null,null,null,null,null,null,null,null,"MJ15","WJ15"]
[null,null,"MJ15_1000","WJ15_1000","SenMixT",null,"MJ16_2000","WJ16_2000",null,null,null,null,null,null,null,null,null,null,null,null,"MJ15_1000","WJ15_1000"]
[null,null,"MJ15_500","WJ15_500","JunMixT",null,"MJ16_500","WJ16_500",null,null,null,null,null,null,null,null,null,null,null,null,"MJ15_500","WJ15_500"]
[null,null,"MJ16_1000","WJ16_1000","SenMixT",null,"MJ18_1000","WJ18_1000",null,null,null,null,null,null,null,null,null,null,null,null,"MJ16_1000","WJ16_1000"]
[null,null,"MJ16_2000","WJ16_2000","JunMixT",null,"MJ18_2000","WJ18_2000",null,null,null,null,null,null,null,null,null,null,null,null,"MJ16_2000","WJ16_2000"]
[null,null,"MJ16_500","WJ16_500","SenMixT",null,"MJ18_500","WJ18_500",null,null,null,null,null,null,null,null,null,null,null,null,"MJ16_500","WJ16_500"]
[null,null,"MJ18_1000","WJ18_1000","JunMixT",null,"MLTA","WLTA",null,null,null,null,null,null,null,null,null,null,null,null,"MJ18_1000","WJ18_1000"]
[null,null,"MJ18_2000","WJ18_2000","SenMixT",null,"MLTA_500","WLTA_500",null,null,null,null,null,null,null,null,null,null,null,null,"MJ18_2000","WJ18_2000"]
[null,null,"MJ18_500","WJ18_500","JunMixT",null,"MO_1000","WO_1000",null,null,null,null,null,null,null,null,null,null,null,null,"MJ18_500","WJ18_500"]
[null,null,"MLTA","WLTA","SenMixT",null,"MO_2000","WO_2000",null,null,null,null,null,null,null,null,null,null,null,null,"MLTA","WLTA"]
[null,null,"MLTA_500","WLTA_500","JunMixT",null,"MO_500","WO_500",null,null,null,null,null,null,null,null,null,null,null,null,"MLTA_500","WLTA_500"]
[null,null,"MO_1000","WO_1000","SenMixT",null,"MOT","WOT",null,null,null,null,null,null,null,null,null,null,null,null,"MO_1000","WO_1000"]
[null,null,"MO_2000","WO_2000","JunMixT",null,"MTA","WTA",null,null,null,null,null,null,null,null,null,null,null,null,"MO_2000","WO_2000"]
[null,null,"MO_500","WO_500","SenMixT",null,"MTST","WTST",null,null,null,null,null,null,null,null,null,null,null,null,"MO_500","WO_500"]
[null,null,"MOT","WOT","JunMixT",null,"MTY1","WTY1",null,null,null,null,null,null,null,null,null,null,null,null,"MOT","WOT"]
[null,null,"MTA","WTA","SenMixT",null,"MTY2","WTY2",null,null,null,null,null,null,null,null,null,null,null,null,"MTA","WTA"]
[null,null,"MTST","WTST","JunMixT",null,"MTY3","WTY3",null,null,null,null,null,null,null,null,null,null,null,null,"MTST","WTST"]
[null,null,"MTY1","WTY1","SenMixT",null,"MTY4","WTY4",null,null,null,null,null,null,null,null,null,null,null,null,"MTY1","WTY1"]
[null,null,"MTY2","WTY2","JunMixT",null,"MTY5","WTY5",null,null,null,null,null,null,null,null,null,null,null,null,"MTY2","WTY2"]
[null,null,"MTY3","WTY3","SenMixT",null,"MU23_2000","WU23_2000",null,null,null,null,null,null,null,null,null,null,null,null,"MTY3","WTY3"]
[null,null,"MTY4","WTY4","JunMixT",null,null,null,null,null,null,null,null,null,null,null,null,null,null,null,"MTY4","WTY4"]
[null,null,"MTY5","WTY5","SenMixT",null,null,null,null,null,null,null,null,null,null,null,null,null,null,null,"MTY5","WTY5"]
[null,null,"MU23_2000","WU23_2000","JunMixT",null,null,null,null,null,null,null,null,null,null,null,null,null,null,null,"MU23_2000","WU23_2000"]

{"sheet":"Sheet1","index":3,"n_rows":0,"n_cols":0,"rows_kept":0,"cut":false,"hidden":false,"merged":[]}